{"text_format":"1","workbook":"xlsx","n_sheets":3,"sheets":["data","th","Sheet3"],"not_rendered":{"charts":0,"images":1,"macros":1,"external_links":0,"defined_names":1,"comments":0,"pivot_tables":0},"unopened":[],"bounds":{"document_bytes":16777216,"sheet_cells":100000,"rows_first":2000,"rows_last":500,"rows_between":2000,"halvings":0,"cell_chars":16384,"cell_head_chars":4096},"cells_cut":0,"cells_raw":0,"read":"whole","date_system":"1900"}

{"sheet":"data","index":0,"n_rows":399,"n_cols":4,"rows_kept":399,"cut":false,"hidden":false,"merged":[]}
[]
[]
[null,null,"الصف والشعبة","اسم الطالب"]
[null,null," 1أl1","اسيل اسامه محمد عبدالعزيز عبدالله"]
[null,null," 1أl1","أروى جمال على محمد امام"]
[null,null," 1أl1","أيسل نهاد محمد يوسف سليمان"]
[null,null," 1أl1","بسملة السيد محمود عابدين"]
[null,null," 1أl1","تقى محمد محمد فتحى سالم عطية"]
[null,null," 1أl1","جاسمين السيد فتحي السيد حسن"]
[null,null," 1أl1","جنى عبدالمنعم جمال عبدالمنعم زايد"]
[null,null," 1أl1","جنى رضا محمود محمد"]
[null,null," 1أl1","جودى الخضرى وهبه الخضرى سيد احمد"]
[null,null," 1أl1","حبيبه محمد منصور باز"]
[null,null," 1أl1","حنين محمد عبدالمنعم السيد محمود عابدين"]
[null,null," 1أl1","حنين محمود عبد الراضى حسنين"]
[null,null," 1أl1","حنين نادر عقل محمد"]
[null,null," 1أl1","خديجه عبدالله حسن ابراهيم"]
[null,null," 1أl1","دالين السيد على عبد الجواد"]
[null,null," 1أl1","ريناد محمود السيد محمود محمد"]
[null,null," 1أl1","رقيه إبراهيم عبد ربه عبد اللطيف"]
[null,null," 1أl1","لين ضياء الدين احمد زايد"]
[null,null,"1بl1","آمال أحمد ناجي محمد عطوه"]
[null,null,"1بl1","روضه رامى محمود محمد"]
[null,null,"1بl1","روفان رضا محمد محمد على"]
[null,null,"1بl1","ريتال أحمد صبرى على أحمد"]
[null,null,"1بl1","ريماس يحيى إبراهيم محمد على إبراهيم"]
[null,null,"1بl1","ريم عبد العليم جابر عبد العال أحمد عجور"]
[null,null,"1بl1","سارة محمود حسن على"]
[null,null,"1بl1","سما وائل محمود حماد"]
[null,null,"1بl1","شهد محمود على محمد"]
[null,null,"1بl1","ليان عمر سعد توفيق عزب السيد على"]
[null,null,"1بl1","مريم سامح شندى عبد العليم"]
[null,null,"1بl1","ملك محمد إمام المرادي"]
[null,null,"1بl1","مودة محمد سيد احمد رضوان"]
[null,null,"1بl1","مى رامى مسعد عبدالمطلب على الاشقر"]
[null,null,"1بl1","هنا السيد عبدالسميع بكر"]
[null,null,"1بl1","هنا محمد أحمد السعيد محمد"]
[null,null,"1بl1","ياسمين أحمد عبد العاطي عبدالعزيز محمد موسى"]
[null,null," 1أl1","أحمد ماهر حسانين رمضان حسانين"]
[null,null," 1أl1","ابراهيم محمد الكيلاني عكاشه محمد رفيده"]
[null,null," 1أl1","احمد باسم نعيم محمود"]
[null,null," 1أl1","احمد محمد جمال محمد"]
[null,null," 1أl1","أحمد محمود أحمد عبدالفتاح أحمد"]
[null,null," 1أl1","أحمد هانى عبدالرازق محمد محمد عابدين"]
[null,null," 1أl1","اسامه محمد عبدالتواب سويلم"]
[null,null," 1أl1","إياد أحمد جمال مجاهد محمد"]
[null,null," 1أl1","حازم هاني فوزي فرج"]
[null,null," 1أl1","حسن عبد الرازق حسن عبد المنعم"]
[null,null," 1أl1","زياد احمد جمال الحسينى"]
[null,null," 1أl1","زياد رضوان سيد احمد رضوان سيد احمد"]
[null,null," 1أl1","سيف محمد عبدالمنعم ابراهيم سليمان"]
[null,null," 1أl1","عبدالرحمن احمد السعيد عبدالحافظ السيد بدوى"]
[null,null," 1أl1","عبد العزيز عبد الله مأمون زايد"]
[null,null," 1أl1","عبد الله محمود فاضل السيد بكر"]
[null,null," 1أl1","عبد المنعم رامى عبد المنعم السيد محمود عابدين"]
[null,null," 1أl1","يوسف عبد اللطيف عبد ربه رفيده"]
[null,null,"1بl1","عصمت محمد فهمى الحنفى"]
[null,null,"1بl1","على أحمد على قنديل"]
[null,null,"1بl1","عمر رامى مسعد عبدالمطلب على الاشقر"]
[null,null,"1بl1","عمر محمد عبدالخالق محمد حسن"]
[null,null,"1بl1","مازن محمد محمود السيد عبد الرحمن داود"]
[null,null,"1بl1","مالك احمد عفيفي ابراهيم"]
[null,null,"1بl1","محمد ابراهيم سعد عبدالخالق متولى"]
[null,null,"1بl1","محمد إبراهيم مصطفى أحمد على الفارس"]
[null,null,"1بl1","محمد اسلام محمد عبدالمطلب علي"]
[null,null,"1بl1","محمد محمود عبد السميع عبد المنعم"]
[null,null,"1بl1","محمود امير عبدالله ابراهيم عامر"]
[null,null,"1بl1","مسعد أحمد مسعد امام رضوان"]
[null,null,"1بl1","ياسين أحمد محمد عبد الحفيظ"]
[null,null,"1بl1","ياسين عبدالله فراج أحمد فراج"]
[null,null,"1بl1","ياسين محمود حسنين عبدالمعطي محمد حسنين"]
[null,null,"1بl1","عبدالرحمن خالد عبدالمنعم زايد محمد"]
[null,null,"1بl1","يوسف رأفت لطفى مدبولى شديد"]
[null,null,"1بl1","يوسف محمد احمد السيد"]
[null,null,"2أl1","أمال وائل محمد زكى السيد الجزار"]
[null,null,"2أl1","أزهار احمد عبد المقصود على"]
[null,null,"2أl1","أيسل إيهاب أحمد محمد"]
[null,null,"2أl1","أيسل موسى ابراهيم المرادى"]
[null,null,"2أl1","تسنيم عبدالمنعم عبدالسميع عبدالمنعم السيد بكر"]
[null,null,"2أl1","جنه ياسر عبد الرحيم على"]
[null,null,"2أl1","جني محمد عبدالحفيظ مصطفي"]
[null,null,"2أl1","جودى رضا عبدالمنعم فرج"]
[null,null,"2أl1","حلا عبد العليم محمد عبد العليم"]
[null,null,"2أl1","خديجه احمد مجاهد محمد"]
[null,null,"2أl1","رزان محمد حسام الدين محمود"]
[null,null,"2أl1","رقيه سعد عبدالسميع عبدالمنعم بكر"]
[null,null,"2أl1","روضة ابراهيم فتحي عبد الستار محمد علي"]
[null,null,"2أl1","روضه صلاح فوزي التهامي"]
[null,null,"2أl1","هدى محمد لطفى عبد الغفار"]
[null,null,"2أl1","هنا محمود عبد الخالق أبو الفتوح إسماعيل"]
[null,null,"2أl1","رؤى طايل حسانين رمضان حسانين"]
[null,null,"2بl1","رودينا محمود عبدالمعطي محمد العليمي"]
[null,null,"2بl1","ريماس ربيع رضوان محمد الهادى حجاج"]
[null,null,"2بl1","ساره محمد حسن عبدالحفيظ محمد عابدين"]
[null,null,"2بl1","ساندى سامح نبوى زكى محمد العشماوى"]
[null,null,"2بl1","سما بهاء محمود متولي ابراهيم"]
[null,null,"2بl1","شمس اسماعيل محمد عبدالجواد اسماعيل"]
[null,null,"2بl1","جودى محمد مصطفى عبد المولى عزب"]
[null,null,"2بl1","جومانة عبد الله حسن عبد الله"]
[null,null,"2بl1","مريم إبراهيم محمود إبراهيم السيد علي"]
[null,null,"2بl1","مريم محمود عبدالعليم بيومى عابدين"]
[null,null,"2بl1","ملك أيمن محمد إبراهيم قاعود"]
[null,null,"2بl1","ملك حمدى السيد عزب"]
[null,null,"2بl1","مودة خالد عبدالمؤمن حسن"]
[null,null,"2بl1","موده عبد العزيز أحمد أحمد محمد المكاوى"]
[null,null,"2بl1","نورا علاء عبد الله عبد الخالق"]
[null,null,"2بl1","هنا احمد عبد الرازق محمود"]
[null,null,"2بl1","يارا محمد عبد الحليم عنتر السيد"]
[null,null,"2بl1","ياسمين اسامه حلمى محمد"]
[null,null,"2أl1","ابراهيم احمد ابراهبم السيد مصيلحي"]
[null,null,"2أl1","أحمد إبراهيم إبراهيم محمود محمد المكاوى"]
[null,null,"2أl1","أحمد سامح عبد الفتاح أحمد"]
[null,null,"2أl1","أحمد محمد على محمد عبد الجواد"]
[null,null,"2أl1","أحمد محمود محمد المهدي"]
[null,null,"2أl1","أدهم عادل الشناوى الحسينى"]
[null,null,"2أl1","أسر محمد صلاح الدين احمد"]
[null,null,"2أl1","باسل أسامة عبدالعاطي عبدالعزيز محمد موسى"]
[null,null,"2أl1","حسن اسامة حسن بازحسن الشريف"]
[null,null,"2أl1","حسين وليد حسين السيد غلوش"]
[null,null,"2أl1","زياد حسام أبو المجد أحمد"]
[null,null,"2أl1","زياد محمد عادل عبد المنعم إبراهيم"]
[null,null,"2أl1","طه نذير طه محمود"]
[null,null,"2أl1","عبد الرحمن أحمد عبد الغنى إمام"]
[null,null,"2أl1","عبد الله ابراهيم عبد السميع عبد المنعم"]
[null,null,"2أl1","عبد الرحمن احمد عبد الرحمن السيد"]
[null,null,"2أl1","عبد الله هانى محمد الهادى عبد الرازق خليل"]
[null,null,"2أl1","محمد عامر عبدالرازق عبدالمنعم محمد الانور"]
[null,null,"2أl1","يوسف محمود فوزى فرج"]
[null,null,"2بl1","عمار محمود عبد العزيز يوسف"]
[null,null,"2بl1","عمر على على الشحرى"]
[null,null,"2بl1","عمرو أحمد موسى الصادق ابراهيم موسى"]
[null,null,"2بl1","مازن أيمن عبد العليم محمود"]
[null,null,"2بl1","مالك محمد محمد الشحات محمود المرادى"]
[null,null,"2بl1","محمد احمد عبدالمعطى محمد العليمى"]
[null,null,"2بl1","محمد رامى فتحى عبدالعزيز عبدالرحمن"]
[null,null,"2بl1","محمد عمرو الكيلانى عكاشة"]
[null,null,"2بl1","محمد محمود على الشحرى"]
[null,null,"2بl1","محمد هشام محمد جلال الدين متولى"]
[null,null,"2بl1","مروان حسن أبو المجد احمد"]
[null,null,"2بl1","مصطفى عاطف عبدالوهاب على ابراهيم"]
[null,null,"2بl1","ياسر محمد السعيد محمود محمد يوسف"]
[null,null,"2بl1","ياسين احمد عبدالمعطى محمد العليمى"]
[null,null,"2بl1","ياسين حسام عطيه المغازى ابوزيد"]
[null,null,"2بl1","ياسين محمد صبحى احمد"]
[null,null,"2بl1","يزيد وليد الشافعى إبراهيم"]
[null,null,"2بl1","يوسف رامى منتصر جودة ابراهيم"]
[null,null,"1أl2","آروى صلاح الدين أحمد عبد الوهاب حماد"]
[null,null,"1أl2","آية جمال إبراهيم محمد عبد الله"]
[null,null,"1أl2","بسملة نادر مأمون أحمد البرعي"]
[null,null,"1أl2","تقى إبراهيم عبد الراضى حسنين أحمد"]
[null,null,"1أl2","جنى محمد شكرى عبد المجيد مصطفى الحاج"]
[null,null,"1أl2","جودى أحمد مرسى القصرى سيد أحمد"]
[null,null,"1أl2","حبيبه توكل محمود محمد عطية"]
[null,null,"1أl2","حبيبه ياسر احمد موسي المرادي"]
[null,null,"1أl2","حنين وليد عبد الله عبد المنعم"]
[null,null,"1أl2","رويدا الحسين فاروق محمد إبراهيم"]
[null,null,"1أl2","ريتاج علي محمد صبري ابراهيم مشحوت"]
[null,null,"1أl2","ريم محمد فتحى السيد محمد بكر"]
[null,null,"1أl2","سارة ابراهيم عبدالفتاح زايد محمد زايد"]
[null,null,"1أl2","سلمى احمد محمد عبد العليم فرج"]
[null,null,"1أl2","سما طارق جلال احمد السيد"]
[null,null,"1بl2","سما عبد الله إبراهيم يوسف عبد الله"]
[null,null,"1بl2","سما عماد رمضان محمد عبد الحميد"]
[null,null,"1بl2","سهيلة محمد على عبد الرازق"]
[null,null,"1بl2","شهد جمال إمام محمد"]
[null,null,"1بl2","فاطمه عبدالمنعم عبدالرازق عبدالمنعم محمد"]
[null,null,"1بl2","لجين محمد محمود أحمد محمد شادى"]
[null,null,"1بl2","مريم محمود على الشحرى"]
[null,null,"1بl2","منة الله بلال محمد الجزار"]
[null,null,"1بl2","منة الله محمود على الشحري"]
[null,null,"1بl2","منه الله عبد المنعم حسن عبد المنعم السيد بكر"]
[null,null,"1بl2","نجلاء إسلام فتحى السيد"]
[null,null,"1بl2","ندى متولى أحمد متولى عطيه"]
[null,null,"1بl2","نورهان محمود الشناوى الحسينى السيد حجاج"]
[null,null,"1بl2","هنا إبراهيم عبد العليم عابدين"]
[null,null,"1بl2","هنا سعيد عبد المنعم موسى"]
[null,null,"1أl2","ابراهيم محمد فتحى امام عبدالرازق خضير"]
[null,null,"1أl2","إبراهيم رمضان الحفنى عبد المعطى حسانين"]
[null,null,"1أl2","إياد إبراهيم السيد محمد حماده"]
[null,null,"1أl2","أحمد أيمن محمود السيد عبد الرحمن"]
[null,null,"1أl2","أحمد طه عبد اللطيف على حسن"]
[null,null,"1أl2","أحمد محمد فتحى سعد إمام"]
[null,null,"1أl2","أدهم عبد اللطيف رمضان حسانين"]
[null,null,"1أl2","آدم محمد محمد الصباحى"]
[null,null,"1أl2","جمال أيمن جمال عبدالمنعم العليمي"]
[null,null,"1أl2","زياد عمرو محمد فرج محمد عماره عامر"]
[null,null,"1أl2","زياد محمود شوقى محمود أحمد البهنسى"]
[null,null,"1أl2","سعيد محمد السعيد عبد الحافظ"]
[null,null,"1أl2","سمير أحمد سمير أحمد العليمى"]
[null,null,"1أl2","عبد الرحمن ايمن حسن باز الشريف"]
[null,null,"1أl2","عبد الله حسام عبد الله عبد المنعم بكر"]
[null,null,"1أl2","عمر سامى عبد الهادى رزق عبد الهادى"]
[null,null,"1بl2","عمرو وجيه عبد الحليم عنتر السيد"]
[null,null,"1بl2","مازن احمد عبدالله محمد محمد"]
[null,null,"1بl2","محمد إيهاب محمد إبراهيم قاعود"]
[null,null,"1بl2","محمد أحمد صبري الجزار"]
[null,null,"1بl2","محمد أحمد محمد حسن السيد فرج"]
[null,null,"1بl2","محمد زكريا عبد اللطيف السيد عطوه"]
[null,null,"1بl2","محمد محمود السيد حجاج"]
[null,null,"1بl2","محمد محمود صبري الجزار"]
[null,null,"1بl2","محمد محمود محمد احمد مكاوى"]
[null,null,"1بl2","مروان محمود صلاح الدين أحمد حسن غنيم"]
[null,null,"1بl2","مسعد أحمد مسعد السعيد"]
[null,null,"1بl2","مصطفى على محمد على حسن"]
[null,null,"1بl2","وفائى محمد فاروق محمد إبراهيم"]
[null,null,"1بl2","ياسين محمد ابراهيم متولي المرادي"]
[null,null,"1بl2","ياسين محمود سمير فرج"]
[null,null,"1بl2","يوسف شوقى السيد محمد السيد المرادى"]
[null,null,"2أl2","اروي محمد حسن باز الشريف"]
[null,null,"2أl2","إسراء عبد المنعم محمد عبد المنعم محمد"]
[null,null,"2أl2","أروى أحمد عبد العزيز السيد بكر"]
[null,null,"2أl2","أيسل عبد الكريم عبد الله عبد الكريم يوسف"]
[null,null,"2أl2","آيه محمد موسى الصادق إبراهيم"]
[null,null,"2أl2","تسنيم أسامه محمود السيد عبدالرحمن داود"]
[null,null,"2أl2","تقى محمد فاضل السيد عبد المجيد"]
[null,null,"2أl2","جودى سامح أحمد الزيات"]
[null,null,"2أl2","حبيبة محمد إبراهيم متولى السيد"]
[null,null,"2أl2","حبيبه خالد عبد الحفيظ حسن"]
[null,null,"2أl2","حنين اشرف عباس عجور"]
[null,null,"2أl2","خديجه صلاح السيد موسى إبراهيم"]
[null,null,"2أl2","رحمه محمد السيد محمد علي"]
[null,null,"2أl2","رحمه وليد عبد المنعم احمد إبراهيم"]
[null,null,"2أl2","رنا رفيق فوزى السيد فرج"]
[null,null,"2أl2","رودينا السيد ابراهيم السيد مصيلحى"]
[null,null,"2بl2","روضه عبد العزيز أحمد أحمد محمد المكاوى"]
[null,null,"2بl2","ريتاج وليد بربرى عبد الحميد محمد"]
[null,null,"2بl2","ساندى شريف عبد المجيد منصور باز"]
[null,null,"2بl2","سما ايمن السعيد المهدى"]
[null,null,"2بl2","سمر جمال فتحى السيد السيد الشريف"]
[null,null,"2بl2","فرح سمير عبد الحفيظ المهدى سيد احمد"]
[null,null,"2بl2","ملك أشرف فتحى إمام عبد الرازق خضير"]
[null,null,"2بl2","ملك محمد وهبة الخضري سيدأحمد"]
[null,null,"2بl2","ميرنا هشام محمود محمود محمد البحيرى"]
[null,null,"2بl2","ندى سيف النصر محمود عبدالعزيز على حماد"]
[null,null,"2بl2","ندى محمد سعد توفيق عزب"]
[null,null,"2بl2","هنا إبراهيم عبد الحفيظ مصطفى"]
[null,null,"2بl2","هنا سعيد حسين ياسين العطار"]
[null,null,"2بl2","هنا علاء السيد السيد زايد"]
[null,null,"2بl2","يارا وليد جمال السيد"]
[null,null,"2بl2","ياسمين عبدالخالق حسن على الدهين"]
[null,null,"2أl2","احمد عبدالفتاح احمد عبدالفتاح عبدالحليم"]
[null,null,"2أl2","العونى عماد العونى محمود العونى"]
[null,null,"2أl2","إسماعيل إبراهيم عبد السميع بكر"]
[null,null,"2أl2","أحمد السيد أحمد أبو العلا محمد الجزار"]
[null,null,"2أl2","أحمد حسن عبد الحفيظ حسن"]
[null,null,"2أl2","أحمد فهمى فراج أحمد فراج"]
[null,null,"2أl2","أحمد محمد فوزى المهدى سيد أحمد"]
[null,null,"2أl2","توفيق هانى توفيق حسن"]
[null,null,"2أl2","زياد عمرو محمد حماد"]
[null,null,"2أl2","زياد محمد محمد عبد العزيز حماد"]
[null,null,"2أl2","سمير احمد سمير عطيه عفيفى الخولى"]
[null,null,"2أl2","صلاح أحمد عبد الله جبر العيسوى"]
[null,null,"2أl2","عبد الله أحمد صبحى سعد الدين محمد"]
[null,null,"2أl2","عمار محمد سمير محمد مصيلحى"]
[null,null,"2أl2","عمر سامح الدسوقى أحمد أبو المجد"]
[null,null,"2بl2","فوزى محمد فوزى عامر"]
[null,null,"2بl2","مجدى غالب محمد غالب العيسوى"]
[null,null,"2بl2","محمد أحمد عبد الراضى عبد الفتاح"]
[null,null,"2بl2","محمد أيمن إبراهيم السيد مصلحى"]
[null,null,"2بl2","محمد عماد النادى موسى أحمد المرادى"]
[null,null,"2بl2","محمد عماد عاطف مكاوى أحمد"]
[null,null,"2بl2","محمود ايمن السعيد المهدى العليمي"]
[null,null,"2بl2","مصطفى محمود سلامة متولى"]
[null,null,"2بl2","مصطفى عبد الغنى مسعد حسن"]
[null,null,"2بl2","مصطفى محمد عبد الله مرسى محمد"]
[null,null,"2بl2","مصطفي محمود جبر أحمد جبر"]
[null,null,"2بl2","ياسين محمد جابر محمد السيد المرادى"]
[null,null,"2بl2","يوسف حلمى عبد الهادى على"]
[null,null,"2بl2","يوسف عبد الوهاب صلاح الدين التهامى عامر"]
[null,null,"1أl3","إيمان محمد محمود حسين السعودي"]
[null,null,"1أl3","إيمان وائل عقل محمد عقل البكري"]
[null,null,"1أl3","آلاء محمود أحمد عبد الفتاح أحمد"]
[null,null,"1أl3","بسملة محمد جمال عبد الحليم المرادى"]
[null,null,"1أl3","جنى إبراهيم أحمد عزت محمد السيد خضير"]
[null,null,"1أl3","جنى سامح ابراهيم السيد مصيلحي"]
[null,null,"1أl3","جنى محمد طه محمود عيد"]
[null,null,"1أl3","جنى وليد رمضان عبد العال متولى"]
[null,null,"1أl3","جنى نادر مأمون أحمد البرعى "]
[null,null,"1أl3","جومانه محمد طه محمود عيد"]
[null,null,"1أl3","حنين أسامه حسن باز"]
[null,null,"1أl3","حنين عبد الغنى مسعد محمد حسن"]
[null,null,"1أl3","ريتاج إيهاب عبد العال المغاورى خليل"]
[null,null,"1أl3","ريتاج أحمد عبدالمعطي محمد العليمي"]
[null,null,"1أl3","ريم محمد موسى إبراهيم حسين"]
[null,null,"1أl3","ريهاند محمود طه محمود عيد ابراهيم"]
[null,null,"1بl3","سارة محمد مسعد السعيد سيد احمد"]
[null,null,"1بl3","ساندي تامر جمال جوده علي سليمان"]
[null,null,"1بl3","سما إسماعيل محمد عبد الجواد إسماعيل"]
[null,null,"1بl3","شهد عاطف عبد الحفيظ المهدى"]
[null,null,"1بl3","صفاء نادر عقل محمد عقل"]
[null,null,"1بl3","قمر محمد أحمد النجار"]
[null,null,"1بl3","ليندا هانى حمدى محمد محمد عطيه"]
[null,null,"1بl3","مريم كرم أحمد محمد عبدالله"]
[null,null,"1بl3","ملك محمد إبراهيم الطران"]
[null,null,"1بl3","ملك وليد السيد العوني"]
[null,null,"1بl3","ميار بشير طه محمود عيد"]
[null,null,"1بl3","ميار ماهر السيد حسين غلوش"]
[null,null,"1بl3","ندي هاني فتحي عواد فرج"]
[null,null,"1بl3","ندي هشام رفعت محمد عقل"]
[null,null,"1بl3","نهى محمد سمير درغام"]
[null,null,"1بl3","نهى وائل محمد رشاد إبراهيم محمد"]
[null,null,"1أl3","السيد حسن حسينى عبد الهادى السيد"]
[null,null,"1أl3","إبراهيم أحمد صبرى على"]
[null,null,"1أl3","أحمد اسلام رجب ابراهيم"]
[null,null,"1أl3","أحمد إيهاب أحمد محمد إيهاب"]
[null,null,"1أl3","أحمد مصطفي عفيفي عفيفي محمد عيسي"]
[null,null,"1أl3","آدم أحمد عبد ربه عبد اللطيف محمد"]
[null,null,"1أl3","آدم محمد جبر أحمد جبر"]
[null,null,"1أl3","بجاد عبد الوهاب جمال محمد أحمد بكر"]
[null,null,"1أl3","ثروت سامى إبراهيم موسى أحمد"]
[null,null,"1أl3","زياد محمد عبد الله عبد الخالق"]
[null,null,"1أl3","سراج محمد توفيق فرج"]
[null,null,"1أl3","سمير عمرو سمير عفيفى"]
[null,null,"1أl3","عبد الرحمن عبد الله مامون زايد"]
[null,null,"1أl3","على السيد عبد الجواد على سليمان"]
[null,null,"1أl3","عمر محمود عبد ربه عبد اللطيف محمد"]
[null,null,"1أl3","فتحى جمال فتحى السيد السيد الشريف"]
[null,null,"1بl3","فتحي وائل ابو الفتوح عبد السلام مصطفي"]
[null,null,"1بl3","لطفى رافت لطفى مدبولى"]
[null,null,"1بl3","مازن سامح شندى عبد العليم شندى"]
[null,null,"1بl3","مازن هانى أحمد محمد أحمد سالم"]
[null,null,"1بl3","مازن وليد عبدالسعيد متولى ايراهيم المرادى"]
[null,null,"1بl3","محمد ابراهيم كمال الصادق حسن"]
[null,null,"1بl3","محمد محمد مسعد امام رضوان"]
[null,null,"1بl3","محمد محمود عبد العليم بيومي عابدين"]
[null,null,"1بl3","محمد ياسر فهيم أحمد مروان"]
[null,null,"1بl3","محمود عابد فهيم محمد الليثي"]
[null,null,"1بl3","محمود محمد حسن على الدهين"]
[null,null,"1بl3","محمود مدحت محمود"]
[null,null,"1بl3","محمود مصطفى صبحى حماد"]
[null,null,"1بl3","مصطفى إبراهيم مصطفى الفارس"]
[null,null,"1بl3","مصطفى محمد عبدالله حسن"]
[null,null,"1بl3","مصطفى محمد محمود السيد المرادى"]
[null,null,"1بl3","يوسف صلاح محمد مصيلحى عوض"]
[null,null,"2أl3","أمانى محمد محمود إبراهيم السيد داود"]
[null,null,"2أl3","آية أحمد الشناوى الحسينى"]
[null,null,"2أl3","جنى بلال عبد السميع بكر"]
[null,null,"2أl3","جنى سامح الدسوقى أحمد"]
[null,null,"2أl3","جنى محمد عبد التواب سويلم"]
[null,null,"2أl3","جني جمال علي محمد امام عطية"]
[null,null,"2أl3","جني محمد الشحات حامد محمد حسن"]
[null,null,"2أl3","حبيبة محمود حسن على محمد المكاوى"]
[null,null,"2أl3","حبيبه أحمد عبد المنعم يوسف عبدالله"]
[null,null,"2أl3","رودينه أحمد رشدى العليمى"]
[null,null,"2أl3","ريتاج محمد عاطف إبراهيم محمد"]
[null,null,"2أl3","ريماس سامح نبوى زكى محمد العشماوى"]
[null,null,"2أl3","ساندى محمد صلاح الدين السلاوى"]
[null,null,"2أl3","سلمى محمد السيد خضير"]
[null,null,"2أl3","سما محمد إمام محمد المرادى"]
[null,null,"2أl3","سما محمد مسعد رمضان حسنين"]
[null,null,"2أl3","هنا خالد مسعد السعيد سيد أحمد"]
[null,null,"2بl3","أسيل ممدوح ابراهيم رزق منتصر"]
[null,null,"2بl3","شروق محمد عبدالوهاب محمد عرفه"]
[null,null,"2بl3","فاطمه عاطف همام زكي العوني"]
[null,null,"2بl3","فرحة عماد السيد محمد الإبيارى"]
[null,null,"2بl3","لجين اسلام مصطفي احمد مصطفي عطوة"]
[null,null,"2بl3","لوجين محمود جمال جوده علي"]
[null,null,"2بl3","مريم محمود عبد السميع بكر"]
[null,null,"2بl3","منه السيد عبدالسميع بكر"]
[null,null,"2بl3","مودة وليد مسعد سلطان"]
[null,null,"2بl3","مى محمد عبد الحليم عنتر السيد"]
[null,null,"2بl3","ميار حمدى عبد الفتاح زايد"]
[null,null,"2بl3","ناديه السيد صبحي أحمد الفارس"]
[null,null,"2بl3","نردى أحمد مسعد السعيد سيد أحمد"]
[null,null,"2بl3","نور حسام  أبو المجد أحمد ابو المجد"]
[null,null,"2بl3","نوران محمود ذكي عبدالعزيز علي حماد"]
[null,null,"2بl3","نورهان أحمد عبد الرحمن يوسف"]
[null,null,"2أl3","إياد هيثم سلامة محمد"]
[null,null,"2أl3","أحمد عمرو فتحى الحنفي"]
[null,null,"2أl3","أحمد محمد الشافعى يوسف ابراهيم"]
[null,null,"2أl3","أحمد مصطفى عبد ربه"]
[null,null,"2أl3","أحمد نبيل أحمد أبو المجد"]
[null,null,"2أl3","أدهم إبراهيم صبحى أحمد حسن العربى"]
[null,null,"2أl3","أنس أحمد يوسف أحمد"]
[null,null,"2أl3","آسر إيهاب محمد عبدالغفار البرعى"]
[null,null,"2أl3","زياد محمد جمال محمود محمد عابدين"]
[null,null,"2أl3","عاطف ابراهيم عاطف ابراهيم محمد"]
[null,null,"2أl3","عبدالرحمن احمد حامد زكى حسن"]
[null,null,"2أl3","عمر عبد الله أحمد السيد شرف"]
[null,null,"2أl3","عمر عبد الناصر حسين إبراهيم غريب"]
[null,null,"2أl3","عمر وليد سلامه محمد الخضري"]
[null,null,"2أl3","مازن محمود عبدالموجود السيد سيدأحمد"]
[null,null,"2أl3","محمد أحمد جبر أحمد جبر"]
[null,null,"2بl3","محمد جمال عبد الرازق مصطفى موسى"]
[null,null,"2بl3","محمد خالد محمد سليمان بكر"]
[null,null,"2بl3","محمد طايل حسانين رمضان حسانين"]
[null,null,"2بl3","محمد عبد اللطيف عبد ربه عبد اللطيف محمد"]
[null,null,"2بl3","محمد غفران محمد عبد المطلب على الاشقر"]
[null,null,"2بl3","محمد فوزي محمود سعيد سيد أحمد"]
[null,null,"2بl3","محمد محمود حسن متولي"]
[null,null,"2بl3","محمد وائل محمد زكى السيد الجزار"]
[null,null,"2بl3","محمد وليد محمد السيد أبو الفتوح"]
[null,null,"2بl3","محمد ياسر عبد الرحيم علي اسماعيل شعلان"]
[null,null,"2بl3","مصطفى أحمد مصطفى عبد المولى عزب"]
[null,null,"2بl3","مصطفى علاء عبد الله عبد الخالق"]
[null,null,"2بl3","مصطفي عبدالوهاب صلاح الدين التهامي عامر"]
[null,null,"2بl3","يوسف أحمد صبحي عبدالرازق أحمد ابراهيم"]
[null,null,"2بl3","يوسف أحمد محمود السيد عبدالرحمن"]
[null,null,"2بl3","يوسف طلعت محمد مامون عطوه يوسف"]

{"sheet":"th","index":1,"n_rows":49,"n_cols":24,"rows_kept":49,"cut":false,"hidden":false,"merged":[[9,19,10,19],[9,20,10,20],[3,3,3,5],[2,10,2,14],[3,10,3,14],[2,15,2,18],[5,2,5,17],[3,15,3,18],[9,13,10,13],[9,14,10,14],[9,15,10,15],[9,16,10,16],[9,17,10,17],[9,18,10,18],[9,7,10,7],[9,8,10,8],[9,9,10,9],[9,10,10,10],[9,11,10,11],[9,12,10,12],[8,18,8,20],[7,3,7,8],[7,9,7,14],[7,15,7,20],[7,1,10,1],[9,3,10,3],[9,4,10,4],[9,5,10,5],[9,6,10,6],[2,3,2,5],[8,3,8,5],[8,6,8,8],[8,9,8,11],[8,12,8,14],[8,15,8,17]]}
[]
[]
[null,null,"الصف والشعبة :"," 1أl1",null,null,null,null,null,null,"الفصل الدراسي :"]
[null,null,"المادة :",null,null,null,null,null,null,null,"عدد التلاميذ :",null,null,null,null,{"$f":"MAX(B12:B49)","v":36}]
[]
[null,null,"مقياس الأداء المتدرج للعام الدراسى 2020/2019"]
[]
[null,"م","الاشهر","اكتوبر",null,null,null,null,null,"نوفمبر",null,null,null,null,null,"ديسمبر"]
[null,null,"المهام","مهام فردية",null,null,"مهام جماعية",null,null,"مهام فردية",null,null,"مهام جماعية",null,null,"مهام فردية",null,null,"مهام جماعية"]
[null,null,"توزيع المهام","شفهي","تحريري","مهارات","شفهي","تحريري","مهارات","شفهي","تحريري","مهارات","شفهي","تحريري","مهارات","شفهي","تحريري","مهارات","شفهي","تحريري","مهارات"," 1أl1","لغة عربية","الأول "]
[null,null,"اسم الطالب",null,null,null,null,null,null,null,null,null,null,null,null,null,null,null,null,null,null,"1بl1","رياضيات ","الثانى "]
[null,{"$f":"IF(C12=\"\",\"\",MAX($B$8:B8)+1)","v":1},{"$f":"IFERROR(INDEX(data!$D$4:$D$1250,SMALL(IF((th!$D$3=data!$C$4:$C$1250),ROW(data!$C$4:$C$1250)-3),ROW(A1))),\"\")","v":"اسيل اسامه محمد عبدالعزيز عبدالله"},null,null,null,null,null,null,null,null,null,null,null,null,null,null,null,null,null,null,"2أl1","لغة انجليزية"]
[null,{"$f":"IF(C13=\"\",\"\",MAX($B$8:B12)+1)","v":2},{"$f":"IFERROR(INDEX(data!$D$4:$D$1250,SMALL(IF((th!$D$3=data!$C$4:$C$1250),ROW(data!$C$4:$C$1250)-3),ROW(A2))),\"\")","v":"أروى جمال على محمد امام"},null,null,null,null,null,null,null,null,null,null,null,null,null,null,null,null,null,null,"2بl1","تربية دينية "]
[null,{"$f":"IF(C14=\"\",\"\",MAX($B$8:B13)+1)","v":3},{"$f":"IFERROR(INDEX(data!$D$4:$D$1250,SMALL(IF((th!$D$3=data!$C$4:$C$1250),ROW(data!$C$4:$C$1250)-3),ROW(A3))),\"\")","v":"أيسل نهاد محمد يوسف سليمان"},null,null,null,null,null,null,null,null,null,null,null,null,null,null,null,null,null,null,"1أl2","تربية بدنية وصحية"]
[null,{"$f":"IF(C15=\"\",\"\",MAX($B$8:B14)+1)","v":4},{"$f":"IFERROR(INDEX(data!$D$4:$D$1250,SMALL(IF((th!$D$3=data!$C$4:$C$1250),ROW(data!$C$4:$C$1250)-3),ROW(A4))),\"\")","v":"بسملة السيد محمود عابدين"},null,null,null,null,null,null,null,null,null,null,null,null,null,null,null,null,null,null,"1بl2","متعدد التخصصات"]
[null,{"$f":"IF(C16=\"\",\"\",MAX($B$8:B15)+1)","v":5},{"$f":"IFERROR(INDEX(data!$D$4:$D$1250,SMALL(IF((th!$D$3=data!$C$4:$C$1250),ROW(data!$C$4:$C$1250)-3),ROW(A5))),\"\")","v":"تقى محمد محمد فتحى سالم عطية"},null,null,null,null,null,null,null,null,null,null,null,null,null,null,null,null,null,null,"2أl2"]
[null,{"$f":"IF(C17=\"\",\"\",MAX($B$8:B16)+1)","v":6},{"$f":"IFERROR(INDEX(data!$D$4:$D$1250,SMALL(IF((th!$D$3=data!$C$4:$C$1250),ROW(data!$C$4:$C$1250)-3),ROW(A6))),\"\")","v":"جاسمين السيد فتحي السيد حسن"},null,null,null,null,null,null,null,null,null,null,null,null,null,null,null,null,null,null,"2بl2"]
[null,{"$f":"IF(C18=\"\",\"\",MAX($B$8:B17)+1)","v":7},{"$f":"IFERROR(INDEX(data!$D$4:$D$1250,SMALL(IF((th!$D$3=data!$C$4:$C$1250),ROW(data!$C$4:$C$1250)-3),ROW(A7))),\"\")","v":"جنى عبدالمنعم جمال عبدالمنعم زايد"},null,null,null,null,null,null,null,null,null,null,null,null,null,null,null,null,null,null,"1أl3"]
[null,{"$f":"IF(C19=\"\",\"\",MAX($B$8:B18)+1)","v":8},{"$f":"IFERROR(INDEX(data!$D$4:$D$1250,SMALL(IF((th!$D$3=data!$C$4:$C$1250),ROW(data!$C$4:$C$1250)-3),ROW(A8))),\"\")","v":"جنى رضا محمود محمد"},null,null,null,null,null,null,null,null,null,null,null,null,null,null,null,null,null,null,"1بl3"]
[null,{"$f":"IF(C20=\"\",\"\",MAX($B$8:B19)+1)","v":9},{"$f":"IFERROR(INDEX(data!$D$4:$D$1250,SMALL(IF((th!$D$3=data!$C$4:$C$1250),ROW(data!$C$4:$C$1250)-3),ROW(A9))),\"\")","v":"جودى الخضرى وهبه الخضرى سيد احمد"},null,null,null,null,null,null,null,null,null,null,null,null,null,null,null,null,null,null,"2أl3"]
[null,{"$f":"IF(C21=\"\",\"\",MAX($B$8:B20)+1)","v":10},{"$f":"IFERROR(INDEX(data!$D$4:$D$1250,SMALL(IF((th!$D$3=data!$C$4:$C$1250),ROW(data!$C$4:$C$1250)-3),ROW(A10))),\"\")","v":"حبيبه محمد منصور باز"},null,null,null,null,null,null,null,null,null,null,null,null,null,null,null,null,null,null,"2بl3"]
[null,{"$f":"IF(C22=\"\",\"\",MAX($B$8:B21)+1)","v":11},{"$f":"IFERROR(INDEX(data!$D$4:$D$1250,SMALL(IF((th!$D$3=data!$C$4:$C$1250),ROW(data!$C$4:$C$1250)-3),ROW(A11))),\"\")","v":"حنين محمد عبدالمنعم السيد محمود عابدين"}]
[null,{"$f":"IF(C23=\"\",\"\",MAX($B$8:B22)+1)","v":12},{"$f":"IFERROR(INDEX(data!$D$4:$D$1250,SMALL(IF((th!$D$3=data!$C$4:$C$1250),ROW(data!$C$4:$C$1250)-3),ROW(A12))),\"\")","v":"حنين محمود عبد الراضى حسنين"}]
[null,{"$f":"IF(C24=\"\",\"\",MAX($B$8:B23)+1)","v":13},{"$f":"IFERROR(INDEX(data!$D$4:$D$1250,SMALL(IF((th!$D$3=data!$C$4:$C$1250),ROW(data!$C$4:$C$1250)-3),ROW(A13))),\"\")","v":"حنين نادر عقل محمد"}]
[null,{"$f":"IF(C25=\"\",\"\",MAX($B$8:B24)+1)","v":14},{"$f":"IFERROR(INDEX(data!$D$4:$D$1250,SMALL(IF((th!$D$3=data!$C$4:$C$1250),ROW(data!$C$4:$C$1250)-3),ROW(A14))),\"\")","v":"خديجه عبدالله حسن ابراهيم"}]
[null,{"$f":"IF(C26=\"\",\"\",MAX($B$8:B25)+1)","v":15},{"$f":"IFERROR(INDEX(data!$D$4:$D$1250,SMALL(IF((th!$D$3=data!$C$4:$C$1250),ROW(data!$C$4:$C$1250)-3),ROW(A15))),\"\")","v":"دالين السيد على عبد الجواد"}]
[null,{"$f":"IF(C27=\"\",\"\",MAX($B$8:B26)+1)","v":16},{"$f":"IFERROR(INDEX(data!$D$4:$D$1250,SMALL(IF((th!$D$3=data!$C$4:$C$1250),ROW(data!$C$4:$C$1250)-3),ROW(A16))),\"\")","v":"ريناد محمود السيد محمود محمد"}]
[null,{"$f":"IF(C28=\"\",\"\",MAX($B$8:B27)+1)","v":17},{"$f":"IFERROR(INDEX(data!$D$4:$D$1250,SMALL(IF((th!$D$3=data!$C$4:$C$1250),ROW(data!$C$4:$C$1250)-3),ROW(A17))),\"\")","v":"رقيه إبراهيم عبد ربه عبد اللطيف"}]
[null,{"$f":"IF(C29=\"\",\"\",MAX($B$8:B28)+1)","v":18},{"$f":"IFERROR(INDEX(data!$D$4:$D$1250,SMALL(IF((th!$D$3=data!$C$4:$C$1250),ROW(data!$C$4:$C$1250)-3),ROW(A18))),\"\")","v":"لين ضياء الدين احمد زايد"}]
[null,{"$f":"IF(C30=\"\",\"\",MAX($B$8:B29)+1)","v":19},{"$f":"IFERROR(INDEX(data!$D$4:$D$1250,SMALL(IF((th!$D$3=data!$C$4:$C$1250),ROW(data!$C$4:$C$1250)-3),ROW(A19))),\"\")","v":"أحمد ماهر حسانين رمضان حسانين"}]
[null,{"$f":"IF(C31=\"\",\"\",MAX($B$8:B30)+1)","v":20},{"$f":"IFERROR(INDEX(data!$D$4:$D$1250,SMALL(IF((th!$D$3=data!$C$4:$C$1250),ROW(data!$C$4:$C$1250)-3),ROW(A20))),\"\")","v":"ابراهيم محمد الكيلاني عكاشه محمد رفيده"}]
[null,{"$f":"IF(C32=\"\",\"\",MAX($B$8:B31)+1)","v":21},{"$f":"IFERROR(INDEX(data!$D$4:$D$1250,SMALL(IF((th!$D$3=data!$C$4:$C$1250),ROW(data!$C$4:$C$1250)-3),ROW(A21))),\"\")","v":"احمد باسم نعيم محمود"}]
[null,{"$f":"IF(C33=\"\",\"\",MAX($B$8:B32)+1)","v":22},{"$f":"IFERROR(INDEX(data!$D$4:$D$1250,SMALL(IF((th!$D$3=data!$C$4:$C$1250),ROW(data!$C$4:$C$1250)-3),ROW(A22))),\"\")","v":"احمد محمد جمال محمد"}]
[null,{"$f":"IF(C34=\"\",\"\",MAX($B$8:B33)+1)","v":23},{"$f":"IFERROR(INDEX(data!$D$4:$D$1250,SMALL(IF((th!$D$3=data!$C$4:$C$1250),ROW(data!$C$4:$C$1250)-3),ROW(A23))),\"\")","v":"أحمد محمود أحمد عبدالفتاح أحمد"}]
[null,{"$f":"IF(C35=\"\",\"\",MAX($B$8:B34)+1)","v":24},{"$f":"IFERROR(INDEX(data!$D$4:$D$1250,SMALL(IF((th!$D$3=data!$C$4:$C$1250),ROW(data!$C$4:$C$1250)-3),ROW(A24))),\"\")","v":"أحمد هانى عبدالرازق محمد محمد عابدين"}]
[null,{"$f":"IF(C36=\"\",\"\",MAX($B$8:B35)+1)","v":25},{"$f":"IFERROR(INDEX(data!$D$4:$D$1250,SMALL(IF((th!$D$3=data!$C$4:$C$1250),ROW(data!$C$4:$C$1250)-3),ROW(A25))),\"\")","v":"اسامه محمد عبدالتواب سويلم"}]
[null,{"$f":"IF(C37=\"\",\"\",MAX($B$8:B36)+1)","v":26},{"$f":"IFERROR(INDEX(data!$D$4:$D$1250,SMALL(IF((th!$D$3=data!$C$4:$C$1250),ROW(data!$C$4:$C$1250)-3),ROW(A26))),\"\")","v":"إياد أحمد جمال مجاهد محمد"}]
[null,{"$f":"IF(C38=\"\",\"\",MAX($B$8:B37)+1)","v":27},{"$f":"IFERROR(INDEX(data!$D$4:$D$1250,SMALL(IF((th!$D$3=data!$C$4:$C$1250),ROW(data!$C$4:$C$1250)-3),ROW(A27))),\"\")","v":"حازم هاني فوزي فرج"}]
[null,{"$f":"IF(C39=\"\",\"\",MAX($B$8:B38)+1)","v":28},{"$f":"IFERROR(INDEX(data!$D$4:$D$1250,SMALL(IF((th!$D$3=data!$C$4:$C$1250),ROW(data!$C$4:$C$1250)-3),ROW(A28))),\"\")","v":"حسن عبد الرازق حسن عبد المنعم"}]
[null,{"$f":"IF(C40=\"\",\"\",MAX($B$8:B39)+1)","v":29},{"$f":"IFERROR(INDEX(data!$D$4:$D$1250,SMALL(IF((th!$D$3=data!$C$4:$C$1250),ROW(data!$C$4:$C$1250)-3),ROW(A29))),\"\")","v":"زياد احمد جمال الحسينى"}]
[null,{"$f":"IF(C41=\"\",\"\",MAX($B$8:B40)+1)","v":30},{"$f":"IFERROR(INDEX(data!$D$4:$D$1250,SMALL(IF((th!$D$3=data!$C$4:$C$1250),ROW(data!$C$4:$C$1250)-3),ROW(A30))),\"\")","v":"زياد رضوان سيد احمد رضوان سيد احمد"}]
[null,{"$f":"IF(C42=\"\",\"\",MAX($B$8:B41)+1)","v":31},{"$f":"IFERROR(INDEX(data!$D$4:$D$1250,SMALL(IF((th!$D$3=data!$C$4:$C$1250),ROW(data!$C$4:$C$1250)-3),ROW(A31))),\"\")","v":"سيف محمد عبدالمنعم ابراهيم سليمان"}]
[null,{"$f":"IF(C43=\"\",\"\",MAX($B$8:B42)+1)","v":32},{"$f":"IFERROR(INDEX(data!$D$4:$D$1250,SMALL(IF((th!$D$3=data!$C$4:$C$1250),ROW(data!$C$4:$C$1250)-3),ROW(A32))),\"\")","v":"عبدالرحمن احمد السعيد عبدالحافظ السيد بدوى"}]
[null,{"$f":"IF(C44=\"\",\"\",MAX($B$8:B43)+1)","v":33},{"$f":"IFERROR(INDEX(data!$D$4:$D$1250,SMALL(IF((th!$D$3=data!$C$4:$C$1250),ROW(data!$C$4:$C$1250)-3),ROW(A33))),\"\")","v":"عبد العزيز عبد الله مأمون زايد"}]
[null,{"$f":"IF(C45=\"\",\"\",MAX($B$8:B44)+1)","v":34},{"$f":"IFERROR(INDEX(data!$D$4:$D$1250,SMALL(IF((th!$D$3=data!$C$4:$C$1250),ROW(data!$C$4:$C$1250)-3),ROW(A34))),\"\")","v":"عبد الله محمود فاضل السيد بكر"}]
[null,{"$f":"IF(C46=\"\",\"\",MAX($B$8:B45)+1)","v":35},{"$f":"IFERROR(INDEX(data!$D$4:$D$1250,SMALL(IF((th!$D$3=data!$C$4:$C$1250),ROW(data!$C$4:$C$1250)-3),ROW(A35))),\"\")","v":"عبد المنعم رامى عبد المنعم السيد محمود عابدين"}]
[null,{"$f":"IF(C47=\"\",\"\",MAX($B$8:B46)+1)","v":36},{"$f":"IFERROR(INDEX(data!$D$4:$D$1250,SMALL(IF((th!$D$3=data!$C$4:$C$1250),ROW(data!$C$4:$C$1250)-3),ROW(A36))),\"\")","v":"يوسف عبد اللطيف عبد ربه رفيده"}]
[null,{"$f":"IF(C48=\"\",\"\",MAX($B$8:B47)+1)","v":""},{"$f":"IFERROR(INDEX(data!$D$4:$D$1250,SMALL(IF((th!$D$3=data!$C$4:$C$1250),ROW(data!$C$4:$C$1250)-3),ROW(A37))),\"\")","v":""}]
[null,{"$f":"IF(C49=\"\",\"\",MAX($B$8:B48)+1)","v":""},{"$f":"IFERROR(INDEX(data!$D$4:$D$1250,SMALL(IF((th!$D$3=data!$C$4:$C$1250),ROW(data!$C$4:$C$1250)-3),ROW(A38))),\"\")","v":""}]

{"sheet":"Sheet3","index":2,"n_rows":14,"n_cols":4,"rows_kept":14,"cut":false,"hidden":false,"merged":[]}
[]
[]
[null,null,null," 1أl1"]
[null,null,null,"1بl1"]
[null,null,null,"2أl1"]
[null,null,null,"2بl1"]
[null,null,null,"1أl2"]
[null,null,null,"1بl2"]
[null,null,null,"2أl2"]
[null,null,null,"2بl2"]
[null,null,null,"1أl3"]
[null,null,null,"1بl3"]
[null,null,null,"2أl3"]
[null,null,null,"2بl3"]